fUSD/lending_fUSD_20240913
["ID","MTS","AMOUNT","RATE_DAILY","PERIOD"]
[337917098,1726205448457,-3336.02,0.00013237,2]
[337917100,1726205448466,-296.8747336,0.00013237,2]
[337917102,1726205448475,-1064.91,0.00013237,2]
[337917104,1726205448484,-3819.14,0.00013237,2]
[337917106,1726205448494,-4840.13,0.00013237,2]
[337917108,1726205448503,-988.54,0.00013237,2]
[337917110,1726205448512,-3194.99,0.00013237,2]
[337917112,1726205448521,-3785.99,0.00013237,2]
[337917114,1726205448530,-1020.09,0.00013237,2]
[337917116,1726205448539,-3639.15,0.00013237,2]
[337917118,1726205448548,-4129.0,0.00013237,2]
[337917120,1726205448557,-704.84,0.00013237,2]
[337917122,1726205448566,-1379.11,0.00013237,2]
[337917124,1726205448575,-2409.35,0.00013237,2]
[337917125,1726205448584,-458.05006103,0.00013237,2]
[337917127,1726205448593,-4680.98,0.00013237,2]
[337917129,1726205448604,-150.0,0.00013238,2]
[337917131,1726205448613,-150.0,0.00013238,2]
[337917133,1726205448623,-150.0,0.00013245,2]
[337917135,1726205448632,-150.0,0.00013245,2]
[337917137,1726205448642,-150.0,0.00013246,2]
[337917139,1726205448650,-150.0,0.00013248,2]
[337917141,1726205448660,-150.0,0.00013248,2]
[337917143,1726205448669,-150.0,0.0001325,2]
[337917145,1726205448678,-150.0,0.0001325,2]
[337917147,1726205448687,-150.0,0.00013251,2]
[337917149,1726205448696,-150.0,0.00013258,2]
[337917151,1726205448705,-150.0,0.00013267,2]
[337917152,1726205448714,-500.0,0.00013273,2]
[337917154,1726205448723,-500.45295182,0.00013273,2]
[337917156,1726205448732,-150.0,0.00013275,2]
[337917158,1726205448742,-150.0,0.00013275,2]
[337917160,1726205448751,-150.0,0.00013281,2]
[337917162,1726205448760,-150.0,0.00013283,2]
[337917164,1726205448769,-150.0,0.00013286,2]
[337917166,1726205448778,-1500.0,0.00013287,2]
[337917168,1726205448787,-150.0,0.00013288,2]
[337917170,1726205448796,-150.0,0.0001329,2]
[337917172,1726205448805,-150.0,0.0001329,2]
[337917174,1726205448814,-150.0,0.00013293,2]
[337917176,1726205448829,-150.0,0.00013295,2]
[337917178,1726205448838,-1500.0,0.00013301,2]
[337917180,1726205448847,-150.0,0.00013304,2]
[337917183,1726205448869,-1500.0,0.00013309,2]
[337917185,1726205448880,-55706.01107995,0.00013313,2]
[337917187,1726205448890,-150.0,0.00013313,2]
[337917189,1726205448901,-150.0,0.00013314,2]
[337917191,1726205448911,-150.0,0.00013316,2]
[337917193,1726205448921,-150.0,0.00013321,2]
[337917195,1726205448930,-150.0,0.00013322,2]
[337917197,1726205448940,-150.0,0.00013326,2]
[337917199,1726205448949,-150.0,0.00013327,2]
[337917201,1726205448958,-150.0,0.00013328,2]
[337917203,1726205448968,-150.0,0.00013332,2]
[337917205,1726205448977,-150.0,0.00013333,2]
[337917207,1726205448986,-150.0,0.00013335,2]
[337917209,1726205448996,-150.0,0.00013336,2]
[337917211,1726205449006,-150.0,0.00013336,2]
[337917213,1726205449016,-150.0,0.00013337,2]
[337917215,1726205449026,-150.0,0.00013339,2]
[337917217,1726205449035,-1500.0,0.00013344,2]
[337917219,1726205449044,-1500.0,0.00013345,2]
[337917221,1726205449054,-150.0,0.00013352,2]
[337917223,1726205449064,-150.0,0.00013352,2]
[337917225,1726205449073,-150.0,0.00013354,2]
[337917227,1726205449082,-151.45753278,0.00013357,2]
[337917229,1726205449092,-150.0,0.00013357,2]
[337917231,1726205449103,-150.0,0.00013359,2]
[337917233,1726205449113,-150.0,0.00013362,2]
[337917234,1726205449122,-150.0,0.00013362,2]
[337917237,1726205449132,-300.0,0.0001337,2]
[337917239,1726205449142,-300.0,0.0001337,2]
[337917241,1726205449152,-944.79,0.0001337,2]
[337917243,1726205449162,-150.0,0.0001337,2]
[337917245,1726205449171,-150.0,0.0001337,2]
[337917247,1726205449181,-150.0,0.0001337,2]
[337917249,1726205449191,-150.16,0.0001337,2]
[337917251,1726205449201,-150.0,0.00013372,2]
[337917253,1726205449211,-150.0,0.00013377,2]
[337917255,1726205449220,-150.0,0.00013377,2]
[337917256,1726205449229,-1102.13979,0.0001338,2]
[337917258,1726205449238,-150.0,0.00013384,2]
[337917260,1726205449248,-150.0,0.00013387,2]
[337917262,1726205449257,-150.0,0.00013388,2]
[337917264,1726205449267,-150.0,0.00013394,2]
[337917266,1726205449277,-150.0,0.00013396,2]
[337917268,1726205449287,-1034.0,0.000134,2]
[337917270,1726205449296,-150.0,0.00013406,2]
[337917272,1726205449307,-150.0,0.00013409,2]
[337917274,1726205449316,-1994.9240589,0.0001341,2]
[337917276,1726205449326,-150.0,0.0001341,2]
[337917278,1726205449335,-150.0,0.00013412,2]
[337917280,1726205449345,-150.0,0.00013414,2]
[337917282,1726205449355,-150.0,0.00013415,2]
[337917284,1726205449365,-150.0,0.00013417,2]
[337917286,1726205449375,-150.0,0.00013433,2]
[337917288,1726205449385,-150.0,0.00013434,2]
[337917290,1726205449396,-150.0,0.00013434,2]
[337917292,1726205449406,-150.0,0.00013437,2]
[337917294,1726205449416,-150.0,0.00013437,2]
[337917297,1726205449427,-150.0,0.0001344,2]
[337917299,1726205449438,-150.0,0.00013442,2]
[337917301,1726205449448,-150.0,0.00013443,2]
[337917303,1726205449459,-150.0,0.00013443,2]
[337917305,1726205449468,-150.0,0.00013443,2]
[337917307,1726205449478,-1500.0,0.00013444,2]
[337917309,1726205449488,-150.0,0.00013455,2]
[337917311,1726205449497,-150.0,0.00013456,2]
[337917313,1726205449509,-150.0,0.00013457,2]
[337917315,1726205449519,-150.0,0.00013458,2]
[337917317,1726205449529,-150.0,0.00013462,2]
[337917319,1726205449540,-150.0,0.00013462,2]
[337917321,1726205449550,-150.0,0.00013462,2]
[337917323,1726205449561,-150.0,0.00013467,2]
[337917325,1726205449571,-150.0,0.00013468,2]
[337917327,1726205449581,-150.0,0.00013472,2]
[337917329,1726205449590,-150.0,0.00013472,2]
[337917331,1726205449601,-150.0,0.00013474,2]
[337917333,1726205449610,-150.0,0.00013475,2]
[337917335,1726205449621,-150.0,0.00013476,2]
[337917337,1726205449631,-150.0,0.00013479,2]
[337917339,1726205449642,-150.0,0.00013479,2]
[337917341,1726205449652,-150.0,0.0001348,2]
[337917343,1726205449662,-150.0,0.00013481,2]
[337917345,1726205449672,-150.0,0.00013482,2]
[337917347,1726205449681,-150.0,0.00013482,2]
[337917349,1726205449691,-150.0,0.00013483,2]
[337917351,1726205449700,-150.0,0.00013483,2]
[337917353,1726205449709,-150.0,0.00013486,2]
[337917355,1726205449718,-150.0,0.00013487,2]
[337917357,1726205449728,-150.0,0.00013487,2]
[337917359,1726205449737,-150.0,0.00013488,2]
[337917361,1726205449747,-150.0,0.00013493,2]
[337917363,1726205449757,-300.0,0.00013495,2]
[337917365,1726205449768,-150.0,0.00013497,2]
[337917367,1726205449779,-3363.15,0.00013506,2]
[337917369,1726205449790,-3870.08,0.00013506,2]
[337917372,1726205449800,-2554.23,0.00013506,2]
[337917374,1726205449810,-3026.99,0.00013506,2]
[337917376,1726205449821,-2546.12,0.00013506,2]
[337917378,1726205449832,-927.69,0.00013506,2]
[337917380,1726205449841,-1764.76,0.00013506,2]
[337917382,1726205449852,-580.69,0.00013506,2]
[337917384,1726205449860,-4802.77,0.00013506,2]
[337917386,1726205449870,-500.0,0.00013506,2]
[337917388,1726205449879,-7818.91,0.00013507,2]
[337917389,1726205449888,-888.98,0.00013507,2]
[337917391,1726205449898,-2783.65,0.00013507,2]
[337917393,1726205449907,-3482.05,0.00013507,2]
[337917395,1726205449917,-500.0,0.00013507,2]
[337917397,1726205449937,-1717.3,0.00013507,2]
[337917399,1726205449946,-753.35,0.00013507,2]
[337917401,1726205449956,-3094.4,0.00013507,2]
[337917403,1726205449965,-2059.12,0.00013507,2]
[337917405,1726205449974,-5007.1,0.00013507,2]
[337917407,1726205449983,-1008.82,0.00013507,2]
[337917409,1726205449993,-2371.24,0.00013507,2]
[337917411,1726205450004,-2949.72,0.00013507,2]
[337917413,1726205450016,-2791.0,0.00013507,2]
[337917415,1726205450026,-5008.21,0.00013507,2]
[337917417,1726205450036,-1615.56,0.00013507,2]
[337917419,1726205450045,-3451.77,0.00013507,2]
[337917421,1726205450055,-872.98,0.00013507,2]
[337917423,1726205450065,-3210.08,0.00013507,2]
[337917425,1726205450075,-2409.33,0.00013507,2]
[337917427,1726205450084,-1274.11,0.00013507,2]
[337917429,1726205450093,-18001.02,0.00013507,2]
[337917431,1726205450103,-5487.11,0.00013507,2]
[337917433,1726205450113,-3215.28,0.00013507,2]
[337917435,1726205450122,-4401.62,0.00013507,2]
[337917437,1726205450131,-2669.52,0.00013507,2]
[337917439,1726205450140,-47412.27,0.00013507,2]
[337917441,1726205450149,-10338.58,0.00013507,2]
[337917443,1726205450160,-7698.66,0.00013507,2]
[337917445,1726205450170,-2828.54,0.00013507,2]
[337917447,1726205450179,-3417.49,0.00013507,2]
[337917449,1726205450189,-4382.1,0.00013507,2]
[337917451,1726205450198,-3915.56,0.00013507,2]
[337917453,1726205450208,-9979.29,0.00013507,2]
[337917455,1726205450219,-1648.69,0.00013507,2]
[337917457,1726205450228,-11084.07,0.00013507,2]
[337917459,1726205450238,-1496.85,0.00013507,2]
[337917461,1726205450247,-8893.91,0.00013507,2]
[337917463,1726205450256,-2857.53,0.00013507,2]
[337917465,1726205450265,-835.81,0.00013507,2]
[337917467,1726205450275,-832.59,0.00013507,2]
[337917469,1726205450285,-1442.72,0.00013507,2]
[337917471,1726205450294,-7447.01,0.00013507,2]
[337917473,1726205450303,-1172.09,0.00013507,2]
[337917475,1726205450312,-723.13,0.00013507,2]
[337917477,1726205450321,-10637.41,0.00013507,2]
[337917479,1726205450331,-1208.18,0.00013508,2]
[337917481,1726205450340,-2272.44,0.00013508,2]
[337917483,1726205450350,-1195.32,0.00013508,2]
[337917485,1726205450362,-1453.13,0.00013508,2]
[337917487,1726205450371,-500.0,0.00013508,2]
[337917489,1726205450381,-500.0,0.00013508,2]
[337917491,1726205450390,-2699.87,0.00013508,2]
[337917493,1726205450399,-904.06,0.00013508,2]
[337917495,1726205450408,-500.0,0.00013508,2]
[337917497,1726205450418,-280.85459417,0.00013508,2]
[337917499,1726205450427,-726.56,0.00013508,2]
[337917501,1726205450436,-500.0,0.00013508,2]
[337917503,1726205450446,-500.0,0.00013508,2]
[337917505,1726205450455,-585.42,0.00013508,2]
[337917507,1726205450465,-2716.48,0.00013508,2]
[337917509,1726205450475,-500.0,0.00013508,2]
[337917511,1726205450484,-500.0,0.00013508,2]
[337917513,1726205450494,-500.0,0.00013508,2]
[337917515,1726205450504,-3073.34,0.00013508,2]
[337917517,1726205450513,-2207.44,0.00013508,2]
[337917519,1726205450522,-500.0,0.00013508,2]
[337917521,1726205450533,-3040.08,0.00013508,2]
[337917523,1726205450543,-661.12,0.00013508,2]
[337917525,1726205450552,-500.0,0.00013508,2]
[337917527,1726205450561,-3067.3,0.00013508,2]
[337917529,1726205450570,-772.39,0.00013508,2]
[337917531,1726205450580,-500.0,0.00013508,2]
[337917533,1726205450589,-1502.66,0.00013508,2]
[337917535,1726205450602,-500.0,0.00013508,2]
[337917537,1726205450611,-631.6,0.00013508,2]
[337917539,1726205450621,-500.0,0.00013508,2]
[337917541,1726205450630,-561.5,0.00013508,2]
[337917543,1726205450639,-500.0,0.00013508,2]
[337917557,1726205450749,-2308.05,0.00013508,2]
[337917560,1726205450790,-500.0,0.00013508,2]
[337917563,1726205450801,-500.0,0.00013508,2]
[337917565,1726205450811,-669.08,0.00013508,2]
[337917566,1726205450820,-500.0,0.00013508,2]
[337917568,1726205450832,-500.0,0.00013508,2]
[337917570,1726205450842,-896.89,0.00013508,2]
[337917572,1726205450851,-500.0,0.00013508,2]
[337917574,1726205450872,-3420.25,0.00013508,2]
[337917576,1726205450881,-1396.39,0.00013508,2]
[337917578,1726205450891,-500.0,0.00013508,2]
[337917580,1726205450900,-1671.19,0.00013508,2]
[337917582,1726205450911,-500.0,0.00013508,2]
[337917584,1726205450920,-500.0,0.00013508,2]
[337917586,1726205450930,-3990.02,0.00013508,2]
[337917588,1726205450939,-500.0,0.00013508,2]
[337917590,1726205450948,-500.0,0.00013508,2]
[337917592,1726205450957,-500.0,0.00013508,2]
[337917594,1726205450965,-2398.12,0.00013508,2]
[337917596,1726205450975,-500.0,0.00013508,2]
[337917598,1726205450984,-500.0,0.00013508,2]
[337917600,1726205450993,-1123.2,0.00013508,2]
[337917602,1726205451002,-500.0,0.00013508,2]
[337917604,1726205451011,-500.0,0.00013508,2]
[337917606,1726205451021,-2495.16,0.00013508,2]
[337917608,1726205451030,-500.0,0.00013508,2]
[337917610,1726205451039,-2704.86,0.00013508,2]
[337917612,1726205451048,-500.0,0.00013508,2]
[337917614,1726205451059,-500.0,0.00013508,2]
[337917616,1726205451069,-321.80293859,0.00013508,2]
[337917618,1726205451079,-500.0,0.00013508,2]
[337917620,1726205451089,-2265.39,0.00013508,2]
[337917622,1726205451099,-500.0,0.00013508,2]
[337917624,1726205451109,-500.0,0.00013508,2]
[337917626,1726205451118,-2724.82,0.00013508,2]
[337917628,1726205451128,-1597.27,0.00013508,2]
[337917630,1726205451138,-500.0,0.00013508,2]
[337917632,1726205451147,-1943.63,0.00013508,2]
[337917634,1726205451156,-500.0,0.00013508,2]
[337917636,1726205451165,-577.45,0.00013508,2]
[337917638,1726205451174,-500.0,0.00013508,2]
[337917640,1726205451183,-3283.28,0.00013508,2]
[337917641,1726205451192,-1015.24,0.00013508,2]
[337917642,1726205451201,-500.0,0.00013508,2]
[337917643,1726205451210,-500.0,0.00013508,2]
[337917644,1726205451220,-500.0,0.00013508,2]
[337917645,1726205451229,-1698.17,0.00013508,2]
[337917646,1726205451239,-3216.43,0.00013508,2]
[337917647,1726205451248,-2871.94,0.00013508,2]
[337917648,1726205451257,-1329.17,0.00013508,2]
[337917649,1726205451266,-1424.57,0.00013508,2]
[337917650,1726205451275,-1807.21,0.00013508,2]
[337917651,1726205451285,-2023.63,0.00013508,2]
[337917652,1726205451294,-3904.95,0.00013508,2]
[337917653,1726205451303,-899.06,0.00013508,2]
[337917654,1726205451312,-1454.65,0.00013508,2]
[337917656,1726205451321,-1639.97,0.00013508,2]
[337917658,1726205451331,-1313.19,0.00013508,2]
[337917659,1726205451340,-1235.0,0.00013508,2]
[337917661,1726205451349,-500.0,0.00013508,2]
[337917663,1726205451363,-7762.78,0.00013508,2]
[337917665,1726205451372,-500.0,0.00013508,2]
[337917667,1726205451382,-1203.41,0.00013508,2]
[337917669,1726205451391,-1910.42,0.00013508,2]
[337917672,1726205451400,-2648.64,0.00013508,2]
[337917673,1726205451409,-2801.46,0.00013508,2]
[337917675,1726205451419,-437.40286194,0.00013508,2]
[337917677,1726205451428,-841.79,0.00013508,2]
[337917679,1726205451438,-1094.46,0.00013508,2]
[337917681,1726205451447,-3260.1,0.00013508,2]
[337917683,1726205451456,-500.0,0.00013508,2]
[337917685,1726205451466,-500.0,0.00013508,2]
[337917687,1726205451475,-738.0,0.00013508,2]
[337917689,1726205451485,-2941.45,0.00013508,2]
[337917691,1726205451494,-5377.12,0.00013508,2]
[337917693,1726205451503,-3879.92,0.00013508,2]
[337917695,1726205451512,-2495.96,0.00013508,2]
[337917697,1726205451521,-1215.72,0.00013508,2]
[337917699,1726205451531,-3767.03,0.00013508,2]
[337917701,1726205451540,-1580.99,0.00013508,2]
[337917703,1726205451549,-500.0,0.00013508,2]
[337917705,1726205451558,-4555.18,0.00013508,2]
[337917707,1726205451567,-665.45,0.00013508,2]
[337917709,1726205451576,-5310.95,0.00013508,2]
[337917710,1726205451585,-506.08,0.00013508,2]
[337917712,1726205451595,-1067.47,0.00013508,2]
[337917714,1726205451606,-2301.38,0.00013508,2]
[337917716,1726205451615,-4515.51,0.00013508,2]
[337917718,1726205451624,-1154.72,0.00013508,2]
[337917720,1726205451634,-2824.57,0.00013508,2]
[337917722,1726205451643,-586.27,0.00013508,2]
[337917724,1726205451652,-715.23,0.00013508,2]
[337917726,1726205451661,-509.35,0.00013508,2]
[337917728,1726205451671,-1144.85,0.00013508,2]
[337917730,1726205451680,-6060.29,0.00013508,2]
[337917732,1726205451689,-7862.73,0.00013508,2]
[337917734,1726205451698,-500.0,0.00013508,2]
[337917736,1726205451708,-4075.41,0.00013508,2]
[337917738,1726205451717,-213.45986404,0.00013508,2]
[337917740,1726205451726,-893.87,0.00013508,2]
[337917742,1726205451735,-1160.22,0.00013508,2]
[337917744,1726205451745,-500.0,0.00013508,2]
[337917746,1726205451754,-500.0,0.00013508,2]
[337917748,1726205451763,-2580.43,0.00013508,2]
[337917750,1726205451772,-2697.58,0.00013508,2]
[337917752,1726205451782,-3816.36,0.00013508,2]
[337917754,1726205451791,-5818.15,0.00013508,2]
[337917756,1726205451800,-500.0,0.00013508,2]
[337917758,1726205451809,-2461.42,0.00013508,2]
[337917759,1726205451819,-1342.72,0.00013508,2]
[337917761,1726205451831,-3608.58,0.00013508,2]
[337917763,1726205451841,-2998.21,0.00013508,2]
[337917765,1726205451850,-512.04,0.00013508,2]
[337917767,1726205451862,-500.0,0.00013509,2]
[337917769,1726205451874,-500.0,0.00013509,2]
[337917771,1726205451883,-500.0,0.00013509,2]
[337917774,1726205451893,-500.0,0.00013509,2]
[337917775,1726205451903,-2714.43,0.00013509,2]
[337917777,1726205451913,-534.8,0.00013509,2]
[337917779,1726205451922,-1545.01,0.00013509,2]
[337917781,1726205451931,-500.0,0.00013509,2]
[337917783,1726205451941,-500.0,0.00013509,2]
[337917785,1726205451950,-500.0,0.00013509,2]
[337917787,1726205451959,-799.7,0.00013509,2]
[337917789,1726205451968,-2328.66,0.00013509,2]
[337917791,1726205451977,-500.0,0.00013509,2]
[337917793,1726205451987,-604.71,0.00013509,2]
[337917795,1726205451996,-500.0,0.00013509,2]
[337917797,1726205452006,-623.33,0.00013509,2]
[337917799,1726205452015,-500.0,0.00013509,2]
[337917801,1726205452024,-500.0,0.00013509,2]
[337917803,1726205452033,-500.0,0.00013509,2]
[337917805,1726205452042,-909.95,0.00013509,2]
[337917807,1726205452051,-597.89,0.00013509,2]
[337917809,1726205452060,-500.0,0.00013509,2]
[337917811,1726205452069,-543.42,0.00013509,2]
[337917813,1726205452079,-536.94,0.00013509,2]
[337917814,1726205452087,-500.0,0.00013509,2]
[337917817,1726205452097,-1314.32,0.00013509,2]
[337917818,1726205452107,-678.42,0.00013509,2]
[337917820,1726205452116,-1646.58,0.00013509,2]
[337917822,1726205452126,-847.34,0.00013509,2]
[337917824,1726205452135,-500.0,0.00013509,2]
[337917826,1726205452145,-500.0,0.00013509,2]
[337917828,1726205452154,-1162.29,0.00013509,2]
[337917830,1726205452164,-1519.69,0.00013509,2]
[337917832,1726205452173,-500.0,0.00013509,2]
[337917834,1726205452182,-500.0,0.00013509,2]
[337917836,1726205452191,-500.0,0.00013509,2]
[337917838,1726205452201,-622.61,0.00013509,2]
[337917840,1726205452211,-2782.23,0.00013509,2]
[337917842,1726205452222,-714.92,0.00013509,2]
[337917844,1726205452232,-4066.53,0.00013509,2]
[337917846,1726205452242,-500.0,0.00013509,2]
[337917848,1726205452251,-1408.65,0.00013509,2]
[337917850,1726205452260,-600.73,0.00013509,2]
[337917852,1726205452269,-500.0,0.00013509,2]
[337917854,1726205452280,-2521.22,0.00013509,2]
[337917856,1726205452290,-2911.42,0.00013509,2]
[337917858,1726205452299,-880.5,0.00013509,2]
[337917860,1726205452308,-3825.95,0.00013509,2]
[337917862,1726205452318,-573.44,0.00013509,2]
[337917863,1726205452327,-1916.71,0.00013509,2]
[337917865,1726205452336,-561.46095045,0.00013509,2]
[337917867,1726205452345,-3766.31,0.00013509,2]
[337917869,1726205452355,-947.5,0.00013509,2]
[337917871,1726205452364,-500.0,0.00013509,2]
[337917873,1726205452373,-1348.2,0.00013509,2]
[337917875,1726205452382,-2050.25,0.00013509,2]
[337917877,1726205452392,-500.0,0.00013509,2]
[337917879,1726205452402,-5350.84,0.00013509,2]
[337917881,1726205452411,-500.0,0.00013509,2]
[337917883,1726205452421,-588.88,0.00013509,2]
[337917885,1726205452430,-500.0,0.00013509,2]
[337917887,1726205452439,-500.0,0.00013509,2]
[337917889,1726205452449,-1986.39,0.00013509,2]
[337917891,1726205452458,-2274.8,0.00013509,2]
[337917893,1726205452467,-500.0,0.00013509,2]
[337917894,1726205452476,-500.0,0.00013509,2]
[337917896,1726205452485,-500.0,0.00013509,2]
[337917898,1726205452494,-500.0,0.00013509,2]
[337917900,1726205452504,-500.0,0.00013509,2]
[337917902,1726205452513,-2684.31,0.00013509,2]
[337917904,1726205452523,-500.0,0.00013509,2]
[337917906,1726205452532,-500.0,0.00013509,2]
[337917908,1726205452541,-2227.67,0.00013509,2]
[337917909,1726205452551,-1641.66,0.00013509,2]
[337917911,1726205452560,-2613.63,0.00013509,2]
[337917913,1726205452569,-276.22297853,0.00013509,2]
[337917915,1726205452579,-533.85,0.00013509,2]
[337917917,1726205452588,-522.6,0.00013509,2]
[337917919,1726205452597,-253.65403366,0.00013509,2]
[337917921,1726205452607,-2000.67,0.00013509,2]
[337917923,1726205452616,-716.33,0.00013509,2]
[337917925,1726205452625,-500.0,0.00013509,2]
[337917927,1726205452635,-767.88,0.00013509,2]
[337917929,1726205452643,-500.0,0.00013509,2]
[337917931,1726205452653,-1465.42,0.00013509,2]
[337917933,1726205452662,-500.0,0.00013509,2]
[337917934,1726205452671,-500.0,0.00013509,2]
[337917936,1726205452681,-2617.18,0.00013509,2]
[337917938,1726205452690,-1512.93,0.00013509,2]
[337917940,1726205452700,-500.0,0.00013509,2]
[337917942,1726205452709,-2602.3,0.00013509,2]
[337917944,1726205452718,-500.0,0.00013509,2]
[337917946,1726205452727,-524.73,0.00013509,2]
[337917948,1726205452737,-500.0,0.00013509,2]
[337917950,1726205452746,-1099.89,0.00013509,2]
[337917952,1726205452756,-500.0,0.00013509,2]
[337917954,1726205452765,-1932.92,0.00013509,2]
[337917956,1726205452775,-500.0,0.00013509,2]
[337917957,1726205452784,-1894.22,0.00013509,2]
[337917960,1726205452793,-1519.52,0.00013509,2]
[337917962,1726205452802,-900.44,0.00013509,2]
[337917964,1726205452812,-1189.4,0.00013509,2]
[337917965,1726205452821,-546.32,0.00013509,2]
[337917968,1726205452834,-500.0,0.00013509,2]
[337917970,1726205452843,-1342.94,0.00013509,2]
[337917971,1726205452852,-2107.07,0.00013509,2]
[337917973,1726205452862,-4965.34,0.00013509,2]
[337917975,1726205452872,-852.89,0.00013509,2]
[337917977,1726205452882,-4334.19,0.00013509,2]
[337917979,1726205452891,-500.0,0.00013509,2]
[337917981,1726205452901,-1899.55,0.00013509,2]
[337917983,1726205452910,-3607.53,0.00013509,2]
[337917985,1726205452920,-1188.3,0.00013509,2]
[337917987,1726205452930,-1626.76,0.00013509,2]
[337917989,1726205452939,-670.13,0.00013509,2]
[337917991,1726205452948,-2872.91,0.00013509,2]
[337917994,1726205452958,-1409.64,0.00013509,2]
[337917995,1726205452967,-2623.76,0.00013509,2]
[337917998,1726205452976,-2193.5,0.00013509,2]
[337918000,1726205452985,-2106.28,0.00013509,2]
[337918001,1726205452994,-500.0,0.00013509,2]
[337918003,1726205453003,-1084.24,0.00013509,2]
[337918037,1726205453316,-1081.89,0.00013509,2]
[337918039,1726205453326,-1019.96,0.00013509,2]
[337918041,1726205453336,-2410.14,0.00013509,2]
[337918042,1726205453346,-1232.19,0.00013509,2]
[337918045,1726205453357,-3808.65,0.00013509,2]
[337918047,1726205453367,-2301.15,0.00013509,2]
[337918049,1726205453376,-3288.88,0.00013509,2]
[337918051,1726205453386,-1523.38,0.00013509,2]
[337918053,1726205453396,-889.8,0.00013509,2]
[337918055,1726205453405,-500.0,0.00013509,2]
[337918057,1726205453415,-1206.39,0.00013509,2]
[337918058,1726205453425,-500.0,0.00013509,2]
[337918060,1726205453434,-1048.53,0.00013509,2]
[337918062,1726205453443,-1178.01364286,0.00013509,2]
[337918068,1726205453492,-232.29635714,0.00013509,2]
[337918070,1726205453502,-1193.29613549,0.00013509,2]
[337918073,1726205453513,-3892.50386451,0.00013509,2]
[337918074,1726205453522,-1022.93,0.00013509,2]
[337918076,1726205453531,-2683.1,0.00013509,2]
[337918078,1726205453540,-4477.96,0.00013509,2]
[337918080,1726205453550,-4499.93,0.00013509,2]
[337918082,1726205453559,-2755.4,0.00013509,2]
[337918084,1726205453568,-3098.4,0.00013509,2]
[337918086,1726205453578,-2498.89244653,0.00013509,2]
[337918088,1726205453589,-141.18755347,0.00013509,2]
[337918090,1726205453598,-500.0,0.00013509,2]
[337918092,1726205453608,-1000.11496653,0.00013509,2]
[337918094,1726205453619,-39.66503347,0.00013509,2]
[337918096,1726205453629,-2742.18,0.00013509,2]
[337918097,1726205453638,-2398.74,0.00013509,2]
[337918099,1726205453647,-917.16,0.00013509,2]
[337918101,1726205453657,-1626.5,0.00013509,2]
[337918103,1726205453666,-2702.48,0.00013509,2]
[337918105,1726205453675,-2729.16,0.00013509,2]
[337918107,1726205453684,-2089.44,0.00013509,2]
[337918109,1726205453694,-4563.4,0.00013509,2]
[337918111,1726205453703,-2223.71,0.00013509,2]
[337918113,1726205453712,-160.23012902,0.00013509,2]
[337918115,1726205453722,-3554.21,0.00013509,2]
[337918117,1726205453731,-500.0,0.00013509,2]
[337918119,1726205453740,-500.0,0.00013509,2]